fUSD/lending_fUSD_20250120
["ID","MTS","AMOUNT","RATE_DAILY","PERIOD"]
[349657822,1737359461227,-500.0,0.00021416,2]
[349657823,1737359461237,-800.07,0.00021416,2]
[349657824,1737359461247,-1680.43,0.00021416,2]
[349657825,1737359461255,-3857.97,0.00021416,2]
[349657826,1737359461266,-766.22,0.00021416,2]
[349657827,1737359461275,-500.0,0.00021416,2]
[349657828,1737359461284,-500.0,0.00021416,2]
[349657829,1737359461297,-623.72,0.00021416,2]
[349657830,1737359461306,-862.26,0.00021416,2]
[349657831,1737359461315,-681.05,0.00021416,2]
[349657832,1737359461325,-651.15,0.00021416,2]
[349657833,1737359461334,-526.75,0.00021416,2]
[349657834,1737359461345,-1464.4,0.00021416,2]
[349657835,1737359461355,-500.0,0.00021416,2]
[349657836,1737359461365,-1742.5,0.00021416,2]
[349657837,1737359461374,-988.26,0.00021416,2]
[349657838,1737359461384,-500.0,0.00021416,2]
[349657839,1737359461394,-500.0,0.00021416,2]
[349657840,1737359461416,-1929.02,0.00021416,2]
[349657841,1737359461426,-500.0,0.00021416,2]
[349657842,1737359461436,-554.29,0.00021416,2]
[349657843,1737359461447,-543.60025523,0.00021416,2]
[349657844,1737359461457,-2608.99,0.00021416,2]
[349657845,1737359461467,-702.59,0.00021416,2]
[349657846,1737359461476,-565.52157636,0.00021416,2]
[349657847,1737359461486,-500.0,0.00021416,2]
[349657848,1737359461496,-500.0,0.00021416,2]
[349657849,1737359461505,-892.76,0.00021416,2]
[349657850,1737359461514,-1170.41,0.00021416,2]
[349657851,1737359461524,-3292.27,0.00021416,2]
[349657852,1737359461534,-2063.8,0.00021416,2]
[349657853,1737359461544,-500.0,0.00021416,2]
[349657854,1737359461555,-500.0,0.00021416,2]
[349657855,1737359461565,-500.0,0.00021416,2]
[349657856,1737359461575,-500.0,0.00021416,2]
[349657857,1737359461585,-3539.58,0.00021416,2]
[349657858,1737359461600,-500.0,0.00021416,2]
[349657859,1737359461610,-697.16,0.00021416,2]
[349657860,1737359461619,-2023.85,0.00021416,2]
[349657861,1737359461629,-500.0,0.00021416,2]
[349657862,1737359461640,-669.59,0.00021416,2]
[349657863,1737359461650,-1075.27,0.00021416,2]
[349657864,1737359461660,-500.0,0.00021416,2]
[349657865,1737359461670,-3688.89,0.00021416,2]
[349657866,1737359461680,-1038.42,0.00021416,2]
[349657867,1737359461690,-838.98,0.00021416,2]
[349657868,1737359461700,-5490.4,0.00021416,2]
[349657869,1737359461709,-1891.28,0.00021416,2]
[349657870,1737359461719,-2548.07,0.00021416,2]
[349657871,1737359461728,-1422.79,0.00021416,2]
[349657872,1737359461738,-500.0,0.00021416,2]
[349657873,1737359461748,-500.0,0.00021416,2]
[349657874,1737359461759,-500.0,0.00021416,2]
[349657875,1737359461770,-2090.87,0.00021416,2]
[349657876,1737359461780,-572.86,0.00021416,2]
[349657877,1737359461790,-2153.11,0.00021416,2]
[349657878,1737359461799,-363.32597168,0.00021417,2]
[349657879,1737359461809,-649.57,0.00021419,2]
[349657880,1737359461818,-500.0,0.00021419,2]
[349657881,1737359461828,-935.12,0.00021419,2]
[349657882,1737359461839,-500.0,0.00021419,2]
[349657883,1737359461850,-1103.37,0.00021419,2]
[349657884,1737359461859,-714.3,0.00021419,2]
[349657885,1737359461870,-1473.59,0.00021419,2]
[349657886,1737359461879,-867.14,0.00021419,2]
[349657887,1737359461889,-714.65,0.00021419,2]
[349657888,1737359461898,-500.0,0.00021419,2]
[349657889,1737359461907,-517.5939595,0.00021419,2]
[349657890,1737359461917,-960.6,0.00021419,2]
[349657891,1737359461927,-500.0,0.00021419,2]
[349657892,1737359461937,-546.51,0.00021419,2]
[349657893,1737359461946,-500.0,0.00021419,2]
[349657894,1737359461955,-500.0,0.00021419,2]
[349657895,1737359461965,-363.32597168,0.00021452,2]
[349657896,1737359461974,-363.32597168,0.00021486,2]
[349657897,1737359461984,-1585.19,0.000215,2]
[349657898,1737359461993,-363.32597168,0.00021521,2]
[349657899,1737359462003,-363.32597168,0.00021555,2]
[349657900,1737359462013,-1123.75,0.0002156,2]
[349657901,1737359462023,-567.0,0.00021577,2]
[349657902,1737359462033,-363.32597168,0.0002159,2]
[349657903,1737359462042,-1633.77504447,0.00021593,2]
[349657904,1737359462051,-563.66658582,0.00021622,2]
[349657905,1737359462060,-363.32597168,0.00021624,3]
[349657906,1737359462070,-1000.0,0.00021643,2]
[349657907,1737359462080,-425.80543622,0.00021646,2]
[349657908,1737359462089,-363.32597168,0.00021659,3]
[349657909,1737359462100,-1974.0,0.0002167,2]
[349657910,1737359462109,-500.0,0.00021689,2]
[349657911,1737359462118,-623.57,0.00021689,2]
[349657912,1737359462127,-500.0,0.00021689,2]
[349657913,1737359462137,-565.14,0.00021689,2]
[349657914,1737359462146,-568.28,0.00021689,2]
[349657915,1737359462155,-500.0,0.00021689,2]
[349657916,1737359462164,-500.0,0.00021689,2]
[349657917,1737359462173,-857.34,0.00021689,2]
[349657918,1737359462183,-500.0,0.00021689,2]
[349657919,1737359462193,-920.18,0.00021689,2]
[349657920,1737359462203,-904.7,0.00021689,2]
[349657921,1737359462212,-500.0,0.00021689,2]
[349657922,1737359462221,-500.0,0.00021689,2]
[349657923,1737359462230,-547.03,0.00021689,2]
[349657924,1737359462240,-500.0,0.00021689,2]
[349657925,1737359462249,-521.5,0.00021689,2]
[349657926,1737359462258,-674.17,0.00021689,2]
[349657927,1737359462267,-500.0,0.00021689,2]
[349657928,1737359462276,-986.2,0.00021689,2]
[349657929,1737359462285,-1227.55,0.00021689,2]
[349657930,1737359462294,-1198.63,0.00021689,2]
[349657931,1737359462303,-618.51,0.00021689,2]
[349657932,1737359462312,-1043.44,0.00021689,2]
[349657933,1737359462321,-500.0,0.00021689,2]
[349657934,1737359462330,-1295.79,0.00021689,2]
[349657935,1737359462339,-500.0,0.00021689,2]
[349657936,1737359462351,-891.15,0.00021689,2]
[349657937,1737359462360,-500.0,0.00021689,2]
[349657938,1737359462370,-449.11383217,0.00021689,2]
[349657939,1737359462379,-1542.54,0.00021689,2]
[349657940,1737359462388,-868.61,0.00021689,2]
[349657941,1737359462398,-1199.92,0.00021689,2]
[349657942,1737359462408,-1570.7,0.00021689,2]
[349657943,1737359462418,-1171.48,0.00021689,2]
[349657944,1737359462427,-1179.9,0.00021689,2]
[349657945,1737359462436,-676.03,0.00021689,2]
[349657946,1737359462447,-1089.01,0.00021689,2]
[349657947,1737359462458,-1779.33,0.00021689,2]
[349657948,1737359462468,-1123.51,0.00021689,2]
[349657949,1737359462480,-824.59,0.00021689,2]
[349657950,1737359462489,-702.58,0.00021689,2]
[349657951,1737359462498,-1313.53,0.00021689,2]
[349657952,1737359462507,-500.0,0.00021689,2]
[349657953,1737359462517,-918.87,0.00021689,2]
[349657954,1737359462527,-3920.49,0.00021689,2]
[349657955,1737359462536,-2465.53,0.00021689,2]
[349657956,1737359462546,-729.31,0.00021689,2]
[349657957,1737359462555,-4948.6,0.00021689,2]
[349657958,1737359462565,-500.0,0.00021689,2]
[349657959,1737359462574,-500.0,0.00021689,2]
[349657960,1737359462583,-500.0,0.00021689,2]
[349657961,1737359462594,-500.0,0.00021689,2]
[349657962,1737359462606,-298.31,0.00021689,2]
[349657963,1737359462615,-2166.66,0.00021689,2]
[349657964,1737359462624,-6379.85,0.00021689,2]
[349657965,1737359462634,-1054.71,0.00021689,2]
[349657966,1737359462643,-6445.67,0.00021689,2]
[349657967,1737359462653,-1445.58,0.00021689,2]
[349657968,1737359462663,-2274.48,0.00021689,2]
[349657969,1737359462673,-1936.82,0.00021689,2]
[349657970,1737359462685,-1198.54,0.00021689,2]
[349657971,1737359462694,-2588.21,0.00021689,2]
[349657972,1737359462703,-2696.65,0.00021689,2]
[349657973,1737359462712,-1011.45,0.00021689,2]
[349657974,1737359462721,-500.0,0.00021689,2]
[349657975,1737359462731,-1258.39,0.00021689,2]
[349657976,1737359462740,-1079.0,0.00021689,2]
[349657977,1737359462749,-1982.52,0.00021689,2]
[349657978,1737359462758,-500.0,0.00021689,2]
[349657979,1737359462768,-1473.34,0.00021689,2]
[349657980,1737359462778,-779.6,0.00021689,2]
[349657981,1737359462787,-817.79,0.00021689,2]
[349657982,1737359462796,-4398.49,0.00021689,2]
[349657983,1737359462805,-926.31,0.00021689,2]
[349657984,1737359462814,-1203.2,0.00021689,2]
[349657985,1737359462823,-710.98,0.00021689,2]
[349657986,1737359462832,-500.0,0.00021689,2]
[349657987,1737359462845,-2061.96,0.00021689,2]
[349657988,1737359462854,-1482.39,0.00021689,2]
[349657989,1737359462863,-805.2,0.00021689,2]
[349657990,1737359462874,-548.96,0.00021689,2]
[349657991,1737359463007,-3448.0,0.00021689,2]
[349657992,1737359463017,-1177.2,0.00021689,2]
[349657993,1737359463027,-1792.51,0.00021689,2]
[349657994,1737359463036,-2000.07,0.00021689,2]
[349657995,1737359463052,-951.51,0.00021689,2]
[349657996,1737359463063,-500.0,0.00021689,2]
[349657997,1737359463073,-1668.68,0.00021689,2]
[349657998,1737359463083,-500.0,0.00021689,2]
[349657999,1737359463094,-894.2,0.00021689,2]
[349658000,1737359463104,-907.24,0.00021689,2]
[349658001,1737359463114,-2517.18,0.00021689,2]
[349658002,1737359463124,-884.91,0.00021689,2]
[349658003,1737359463134,-500.0,0.00021689,2]
[349658004,1737359463143,-500.0,0.00021689,2]
[349658005,1737359463153,-2474.52,0.00021689,2]
[349658006,1737359463163,-1054.83,0.00021689,2]
[349658007,1737359463173,-1387.21,0.00021689,2]
[349658008,1737359463183,-620.97,0.00021689,2]
[349658009,1737359463192,-500.0,0.00021689,2]
[349658010,1737359463202,-1169.54,0.00021689,2]
[349658011,1737359463211,-681.24,0.00021689,2]
[349658012,1737359463221,-500.0,0.00021689,2]
[349658013,1737359463230,-500.0,0.0002169,2]
[349658014,1737359463240,-594.3,0.0002169,2]
[349658015,1737359463250,-746.35,0.0002169,2]
[349658016,1737359463259,-500.0,0.0002169,2]
[349658017,1737359463269,-695.05,0.0002169,2]
[349658018,1737359463279,-956.85,0.0002169,2]
[349658019,1737359463288,-500.0,0.0002169,2]
[349658020,1737359463297,-679.77,0.0002169,2]
[349658021,1737359463307,-1162.51,0.0002169,2]
[349658022,1737359463316,-500.0,0.0002169,2]
[349658023,1737359463326,-500.0,0.0002169,2]
[349658024,1737359463337,-500.0,0.0002169,2]
[349658025,1737359463360,-613.78,0.0002169,2]
[349658026,1737359463370,-500.0,0.0002169,2]
[349658027,1737359463381,-998.73,0.0002169,2]
[349658028,1737359463391,-500.0,0.0002169,2]
[349658029,1737359463401,-721.37,0.0002169,2]
[349658030,1737359463413,-803.78,0.0002169,2]
[349658031,1737359463423,-500.0,0.0002169,2]
[349658032,1737359463433,-564.33,0.0002169,2]
[349658033,1737359463443,-503.83,0.0002169,2]
[349658034,1737359463452,-500.0,0.0002169,2]
[349658035,1737359463462,-500.0,0.0002169,2]
[349658036,1737359463471,-876.13,0.0002169,2]
[349658037,1737359463481,-298.65,0.0002169,2]
[349658038,1737359463491,-500.0,0.0002169,2]
[349658039,1737359463501,-500.0,0.0002169,2]
[349658040,1737359463511,-500.0,0.0002169,2]
[349658041,1737359463520,-500.0,0.0002169,2]
[349658042,1737359463530,-591.89,0.0002169,2]
[349658043,1737359463539,-500.0,0.0002169,2]
[349658044,1737359463548,-500.0,0.0002169,2]
[349658045,1737359463558,-1170.98,0.0002169,2]
[349658046,1737359463568,-521.40967492,0.0002169,2]
[349658047,1737359463577,-500.0,0.0002169,2]
[349658048,1737359463587,-500.0,0.0002169,2]
[349658049,1737359463600,-500.0,0.0002169,2]
[349658050,1737359463610,-1457.34,0.0002169,2]
[349658051,1737359463619,-1192.12,0.0002169,2]
[349658052,1737359463628,-1630.39,0.0002169,2]
[349658053,1737359463638,-500.0,0.0002169,2]
[349658054,1737359463647,-1752.84,0.0002169,2]
[349658055,1737359463657,-500.0,0.0002169,2]
[349658056,1737359463675,-776.12,0.0002169,2]
[349658057,1737359463685,-798.28,0.0002169,2]
[349658058,1737359463694,-500.0,0.0002169,2]
[349658059,1737359463706,-317.8570847,0.0002169,2]
[349658060,1737359463718,-621.6,0.0002169,2]
[349658061,1737359463730,-500.0,0.0002169,2]
[349658062,1737359463740,-1138.23,0.0002169,2]
[349658063,1737359463754,-873.64,0.0002169,2]
[349658064,1737359463766,-1081.27,0.0002169,2]
[349658065,1737359463775,-414.27870983,0.0002169,2]
[349658066,1737359463785,-1328.3,0.0002169,2]
[349658067,1737359463795,-760.12,0.0002169,2]
[349658068,1737359463804,-4201.07,0.0002169,2]
[349658069,1737359463813,-1224.29,0.0002169,2]
[349658070,1737359463823,-736.71,0.0002169,2]
[349658071,1737359463833,-1940.39,0.0002169,2]
[349658072,1737359463844,-827.491924,0.0002169,2]
[349658073,1737359463853,-500.0,0.0002169,2]
[349658074,1737359463862,-709.33,0.0002169,2]
[349658075,1737359463872,-500.0,0.0002169,2]
[349658076,1737359463882,-1825.22,0.0002169,2]
[349658077,1737359463892,-632.12,0.0002169,2]
[349658078,1737359463901,-3582.35,0.0002169,2]
[349658079,1737359463910,-717.32,0.0002169,2]
[349658080,1737359463920,-1796.622825,0.0002169,2]
[349658081,1737359463930,-500.0,0.0002169,2]
[349658082,1737359463939,-500.0,0.0002169,2]
[349658083,1737359463948,-7720.87,0.0002169,2]
[349658084,1737359463959,-155.929331,0.0002169,2]
[349658085,1737359463969,-500.0,0.0002169,2]
[349658086,1737359463979,-500.0,0.0002169,2]
[349658087,1737359463989,-2283.23,0.0002169,2]
[349658088,1737359463998,-2234.39,0.0002169,2]
[349658089,1737359464008,-618.5,0.0002169,2]
[349658090,1737359464018,-500.0,0.0002169,2]
[349658091,1737359464027,-500.0,0.0002169,2]
[349658092,1737359464037,-713.08,0.0002169,2]
[349658093,1737359464046,-547.72,0.0002169,2]
[349658094,1737359464055,-500.0,0.0002169,2]
[349658095,1737359464064,-577.42,0.0002169,2]
[349658096,1737359464073,-471.05157586,0.0002169,2]
[349658097,1737359464083,-1588.31,0.0002169,2]
[349658098,1737359464095,-1379.24,0.0002169,2]
[349658099,1737359464104,-1036.42,0.0002169,2]
[349658100,1737359464114,-500.0,0.0002169,2]
[349658101,1737359464123,-800.07,0.0002169,2]
[349658102,1737359464133,-1680.43,0.0002169,2]
[349658103,1737359464142,-3857.97,0.0002169,2]
[349658104,1737359464151,-766.22,0.0002169,2]
[349658105,1737359464161,-500.0,0.0002169,2]
[349658106,1737359464171,-500.0,0.0002169,2]
[349658107,1737359464181,-623.72,0.0002169,2]
[349658108,1737359464191,-862.26,0.0002169,2]
[349658109,1737359464201,-681.05,0.0002169,2]
[349658110,1737359464211,-651.15,0.0002169,2]
[349658111,1737359464220,-526.75,0.0002169,2]
[349658112,1737359464230,-1464.4,0.0002169,2]
[349658113,1737359464240,-500.0,0.0002169,2]
[349658114,1737359464250,-1742.5,0.0002169,2]
[349658115,1737359464259,-988.26,0.0002169,2]
[349658116,1737359464269,-500.0,0.0002169,2]
[349658117,1737359464278,-500.0,0.0002169,2]
[349658118,1737359464288,-1929.02,0.0002169,2]
[349658119,1737359464298,-500.0,0.0002169,2]
[349658120,1737359464307,-554.29,0.0002169,2]
[349658121,1737359464318,-2608.99,0.0002169,2]
[349658122,1737359464328,-702.59,0.0002169,2]
[349658123,1737359464338,-500.0,0.0002169,2]
[349658124,1737359464349,-545.19683738,0.0002169,2]
[349658125,1737359464359,-892.76,0.0002169,2]
[349658126,1737359464369,-1170.41,0.0002169,2]
[349658127,1737359464379,-3292.27,0.0002169,2]
[349658128,1737359464389,-2063.8,0.0002169,2]
[349658129,1737359464398,-500.0,0.0002169,2]
[349658130,1737359464408,-561.3940922,0.0002169,2]
[349658131,1737359464419,-500.0,0.0002169,2]
[349658132,1737359464429,-500.0,0.0002169,2]
[349658133,1737359464439,-3539.58,0.0002169,2]
[349658134,1737359464449,-500.0,0.0002169,2]
[349658135,1737359464459,-697.16,0.0002169,2]
[349658136,1737359464469,-445.02431043,0.0002169,2]
[349658137,1737359464478,-2023.85,0.0002169,2]
[349658138,1737359464488,-669.59,0.0002169,2]
[349658139,1737359464498,-1075.27,0.0002169,2]
[349658140,1737359464507,-500.0,0.0002169,2]
[349658141,1737359464516,-3688.89,0.0002169,2]
[349658142,1737359464526,-1038.42,0.0002169,2]
[349658143,1737359464535,-838.98,0.0002169,2]
[349658144,1737359464545,-5490.4,0.0002169,2]
[349658145,1737359464554,-1891.28,0.0002169,2]
[349658146,1737359464563,-2548.07,0.0002169,2]
[349658147,1737359464572,-1422.79,0.0002169,2]
[349658148,1737359464583,-500.0,0.0002169,2]
[349658149,1737359464595,-500.0,0.0002169,2]
[349658150,1737359464604,-500.0,0.0002169,2]
[349658151,1737359464614,-2090.87,0.0002169,2]
[349658152,1737359464623,-572.86,0.0002169,2]
[349658153,1737359464632,-2153.11,0.0002169,2]
[349658154,1737359464641,-649.57,0.00021693,2]
[349658155,1737359464650,-500.0,0.00021693,2]
[349658156,1737359464660,-935.12,0.00021693,2]
[349658157,1737359464668,-500.0,0.00021693,2]
[349658158,1737359464677,-1103.37,0.00021693,2]
[349658159,1737359464686,-714.3,0.00021693,2]
[349658160,1737359464695,-1473.59,0.00021693,2]
[349658161,1737359464704,-867.14,0.00021693,2]
[349658162,1737359464713,-714.65,0.00021693,2]
[349658163,1737359464722,-500.0,0.00021693,2]
[349658164,1737359464731,-960.6,0.00021693,2]
[349658165,1737359464740,-546.51,0.00021693,2]
[349658166,1737359464749,-500.0,0.00021693,2]
[349658167,1737359464758,-320.44443844,0.00021693,2]
[349658168,1737359464767,-363.32597168,0.00021693,3]
[349658169,1737359464777,-538.09663045,0.000217,2]
[349658170,1737359464786,-1000.0,0.000217,2]
[349658171,1737359464795,-363.32597168,0.00021728,3]
[349658172,1737359464804,-363.32597168,0.00021762,3]
[349658173,1737359464813,-1170.66641,0.0002178,2]
[349658174,1737359464822,-363.32597168,0.00021797,3]
[349658175,1737359464831,-150.0,0.000218,2]
[349658176,1737359464840,-1000.0,0.000218,2]
[349658177,1737359464851,-500.0,0.00021824,2]
[349658178,1737359464861,-363.32597168,0.00021831,3]
[349658179,1737359464870,-168.98,0.00021843,2]
[349658180,1737359464880,-363.32597168,0.00021866,3]
[349658181,1737359464889,-937.06,0.00021885,7]
[349658182,1737359464898,-937.06,0.00021885,7]
[349658183,1737359464907,-937.06,0.00021885,7]
[349658184,1737359464916,-937.06,0.00021885,7]
[349658185,1737359464925,-500.0,0.0002189,2]
[349658186,1737359464934,-2000.0,0.000219,2]
[349658187,1737359464942,-245662.82110763,0.000219,4]
[349658188,1737359464951,-252.75134519,0.000219,2]
[349658189,1737359464960,-563.66658582,0.000219,2]
[349658190,1737359464971,-519.84757797,0.000219,2]
[349658191,1737359464981,-363.32597168,0.000219,3]
[349658192,1737359464990,-749.18662291,0.000219,2]
[349658193,1737359465000,-376.34264496,0.000219,2]
[349658194,1737359465010,-239.27140601,0.000219,4]
[349658195,1737359465020,-200.0,0.0002191,6]
[349658196,1737359465029,-500.0,0.00021917,2]
[349658197,1737359465138,-500.0,0.00021917,2]
[349658198,1737359465148,-500.0,0.00021917,2]
[349658199,1737359465158,-500.0,0.00021917,2]
[349658200,1737359465168,-500.0,0.00021917,2]
[349658201,1737359465177,-500.0,0.00021917,2]
[349658202,1737359465186,-500.0,0.00021917,2]
[349658203,1737359465195,-500.0,0.00021917,2]
[349658204,1737359465204,-500.0,0.00021917,2]
[349658205,1737359465213,-500.0,0.00021917,3]
[349658206,1737359465223,-500.0,0.00021917,3]
[349658207,1737359465232,-500.0,0.00021917,3]
[349658208,1737359465241,-294.01268559,0.00021917,3]
[349658209,1737359465251,-1000.0,0.00021918,3]
[349658210,1737359465260,-1000.0,0.00021918,3]
[349658211,1737359465269,-1000.0,0.00021918,3]
[349658212,1737359465278,-1000.0,0.00021918,3]
[349658213,1737359465287,-1000.0,0.00021918,3]
[349658214,1737359465296,-1000.0,0.00021918,3]
[349658215,1737359465305,-1000.0,0.00021918,3]
[349658216,1737359465314,-1000.0,0.00021918,3]
[349658217,1737359465323,-1000.0,0.00021918,3]
[349658218,1737359465332,-1000.0,0.00021918,3]
[349658219,1737359465341,-1000.0,0.00021918,3]
[349658220,1737359465353,-1000.0,0.00021918,3]
[349658221,1737359465362,-1000.0,0.00021918,3]
[349658222,1737359465372,-1000.0,0.00021918,3]
[349658223,1737359465381,-1000.0,0.00021918,3]
[349658224,1737359465391,-1000.0,0.00021918,3]
[349658225,1737359465401,-1000.0,0.00021918,3]
[349658226,1737359465413,-1000.0,0.00021918,3]
[349658227,1737359465422,-1000.0,0.00021918,3]
[349658228,1737359465433,-1000.0,0.00021918,3]
[349658229,1737359465443,-1000.0,0.00021918,3]
[349658230,1737359465454,-1000.0,0.00021918,3]
[349658231,1737359465463,-1000.0,0.00021918,3]
[349658232,1737359465472,-1000.0,0.00021918,3]
[349658233,1737359465483,-1000.0,0.00021918,3]
[349658234,1737359465492,-1000.0,0.00021918,3]
[349658235,1737359465502,-1000.0,0.00021918,3]
[349658236,1737359465511,-1000.0,0.00021918,3]
[349658237,1737359465521,-1000.0,0.00021918,3]
[349658238,1737359465530,-1000.0,0.00021918,3]
[349658239,1737359465539,-1000.0,0.00021918,3]
[349658240,1737359465549,-1000.0,0.00021918,3]
[349658241,1737359465559,-1000.0,0.00021918,3]
[349658242,1737359465568,-1000.0,0.00021918,3]
[349658243,1737359465577,-1000.0,0.00021918,3]
[349658244,1737359465587,-1000.0,0.00021918,3]
[349658245,1737359465597,-1000.0,0.00021918,3]
[349658246,1737359465606,-1000.0,0.00021918,3]
[349658247,1737359465615,-1000.0,0.00021918,3]
[349658248,1737359465625,-1000.0,0.00021918,3]
[349658249,1737359465634,-759.0,0.00021918,3]
[349658250,1737359465643,-1000.0,0.00021918,3]
[349658251,1737359465652,-1000.0,0.00021918,3]
[349658252,1737359465662,-1000.0,0.00021918,3]
[349658253,1737359465671,-4000.0,0.00021918,2]
[349658254,1737359465680,-150.0,0.00021918,2]
[349658255,1737359465690,-150.0,0.00021945,4]
[349658256,1737359465699,-150.0,0.00021945,4]
[349658257,1737359465708,-150.0,0.00021945,4]
[349658258,1737359465717,-500.0,0.00021963,2]
[349658259,1737359465726,-623.57,0.00021963,2]
[349658260,1737359465735,-500.0,0.00021963,2]
[349658261,1737359465744,-565.14,0.00021963,2]
[349658262,1737359465753,-568.28,0.00021963,2]
[349658263,1737359465762,-500.0,0.00021963,2]
[349658264,1737359465772,-500.0,0.00021963,2]
[349658265,1737359465781,-857.34,0.00021963,2]
[349658266,1737359465791,-500.0,0.00021963,2]
[349658267,1737359465800,-920.18,0.00021963,2]
[349658268,1737359465810,-904.7,0.00021963,2]
[349658269,1737359465819,-500.0,0.00021963,2]
[349658270,1737359465828,-500.0,0.00021963,2]
[349658271,1737359465837,-547.03,0.00021963,2]
[349658272,1737359465848,-500.0,0.00021963,2]
[349658273,1737359465857,-521.5,0.00021963,2]
[349658274,1737359465866,-674.17,0.00021963,2]
[349658275,1737359465875,-500.0,0.00021963,2]
[349658276,1737359465884,-986.2,0.00021963,2]
[349658277,1737359465893,-1227.55,0.00021963,2]
[349658278,1737359465903,-1198.63,0.00021963,2]
[349658279,1737359465912,-618.51,0.00021963,2]
[349658280,1737359465921,-1043.44,0.00021963,2]
[349658281,1737359465931,-500.0,0.00021963,2]
[349658282,1737359465940,-1295.79,0.00021963,2]
[349658283,1737359465949,-500.0,0.00021963,2]
[349658284,1737359465959,-891.15,0.00021963,2]
[349658285,1737359465968,-500.0,0.00021963,2]
[349658286,1737359465978,-1542.54,0.00021963,2]
[349658287,1737359465987,-868.61,0.00021963,2]
[349658288,1737359465997,-1199.92,0.00021963,2]
[349658289,1737359466007,-1570.7,0.00021963,2]
[349658290,1737359466016,-1171.48,0.00021963,2]
[349658291,1737359466026,-1179.9,0.00021963,2]
[349658292,1737359466035,-676.03,0.00021963,2]
[349658293,1737359466044,-1089.01,0.00021963,2]
[349658294,1737359466052,-1779.33,0.00021963,2]
[349658295,1737359466062,-1123.51,0.00021963,2]
[349658296,1737359466072,-824.59,0.00021963,2]
[349658297,1737359466081,-702.58,0.00021963,2]
[349658298,1737359466090,-1313.53,0.00021963,2]
[349658299,1737359466102,-500.0,0.00021963,2]
[349658300,1737359466111,-918.87,0.00021963,2]
[349658301,1737359466120,-3920.49,0.00021963,2]
[349658302,1737359466130,-2465.53,0.00021963,2]
[349658303,1737359466139,-729.31,0.00021963,2]
[349658304,1737359466148,-4948.6,0.00021963,2]
[349658305,1737359466157,-500.0,0.00021963,2]
[349658306,1737359466166,-500.0,0.00021963,2]
[349658307,1737359466175,-500.0,0.00021963,2]
[349658308,1737359466185,-500.0,0.00021963,2]
[349658309,1737359466194,-2166.66,0.00021963,2]
[349658310,1737359466203,-6379.85,0.00021963,2]
[349658311,1737359466212,-1054.71,0.00021963,2]
[349658312,1737359466221,-6445.67,0.00021963,2]
[349658313,1737359466231,-1445.58,0.00021963,2]
[349658314,1737359466240,-2274.48,0.00021963,2]
[349658315,1737359466249,-1936.82,0.00021963,2]
[349658316,1737359466258,-1198.54,0.00021963,2]
[349658317,1737359466268,-2588.21,0.00021963,2]
[349658318,1737359466277,-2696.65,0.00021963,2]
[349658319,1737359466286,-1011.45,0.00021963,2]
[349658320,1737359466295,-500.0,0.00021963,2]
[349658321,1737359466304,-1258.39,0.00021963,2]